bitfinex-derivatives/quotes_SOLF0:USTF0_20241203
["timestamp","ask_amount","ask_price","bid_price","bid_amount"]
[1733237885504,33.69538657,224.18,223.98,33.69538657]
[1733237886096,33.69538657,224.14,223.94,33.69538657]
[1733237886298,33.69538657,224.14,223.99,2.2319]
[1733237886603,33.69538657,224.14,223.94,33.69538657]
[1733237886799,2.2315,224.04,223.97,2.232]
[1733237887002,33.69538657,224.14,223.94,33.69538657]
[1733237887301,2.2314,224.04,223.98,2.232]
[1733237887610,2.19063152,224.18,224.02,33.69538657]
[1733237887800,9.1268,224.23,224.06,33.69538657]
[1733237887801,2.7268,224.23,224.06,33.69538657]
[1733237888306,2.2301,224.18,224.1,2.2308]
[1733237888499,2.7268,224.23,224.06,33.69538657]
[1733237889005,2.7268,224.23,223.98,33.69538657]
[1733237889208,6.4,224.31,224.1,33.69538657]
[1733237889404,2.2295,224.24,224.16,2.2302]
[1733237889609,2.2295,224.24,224.1,33.69538657]
[1733237889610,6.4,224.31,224.1,33.69538657]
[1733237890415,6.4,224.31,224.08,6.4]
[1733237890416,33.69538657,224.25,224.08,6.4]
[1733237890609,33.69538657,224.25,224.12,2.2306]
[1733237890809,33.69538657,224.25,224.08,6.4]
[1733237891203,33.69538657,224.25,224.12,2.2306]
[1733237891403,33.69538657,224.25,224.06,33.69538657]
[1733237892006,33.69538657,224.21,223.98,33.69538657]
[1733237892215,33.69538657,224.17,223.98,33.69538657]
[1733237892509,33.69538657,224.17,223.94,33.69538657]
[1733237892710,5.5248,224.16,223.94,33.69538657]
[1733237893211,5.5248,224.16,223.98,33.69538657]
[1733237893404,2.231,224.09,223.98,33.69538657]
[1733237893612,5.5248,224.16,223.98,33.69538657]
[1733237894610,5.5248,224.16,224.02,33.69538657]
[1733237894806,2.2307,224.12,224.04,2.2315]
[1733237895010,5.5248,224.16,223.98,33.69538657]
[1733237895416,2.2308,224.11,224.01,2.2317]
[1733237895613,5.5248,224.16,223.94,33.69538657]
[1733237895817,5.5248,224.16,223.98,33.69538657]
[1733237896017,5.5248,224.16,224.04,2.2314]
[1733237896217,5.5248,224.16,223.98,33.69538657]
[1733237896707,2.2308,224.11,224.05,2.2314]
[1733237896913,5.5248,224.16,223.98,33.69538657]
[1733237897312,2.2309,224.1,223.98,33.69538657]
[1733237897512,5.5248,224.16,223.98,33.69538657]
[1733237897809,2.2308,224.11,223.98,33.69538657]
[1733237898017,5.5248,224.16,223.98,33.69538657]
[1733237898212,2.231,224.1,224.04,2.2314]
[1733237898418,5.5248,224.16,223.98,33.69538657]
[1733237899215,5.5248,224.16,223.99,1.11662192]
[1733237899417,5.5248,224.16,224.02,33.69538657]
[1733237899716,5.5248,224.16,224.03,1.11636525]
[1733237899912,2.2306,224.13,224.08,2.231]
[1733237900215,33.69538657,224.25,224.06,33.69538657]
[1733237900418,8.124,224.32,224.1,33.69538657]
[1733237900611,5.3631,224.32,224.14,33.69538657]
[1733237901014,2.2295,224.24,224.17,2.2302]
[1733237901225,33.69538657,224.31,224.17,2.2302]
[1733237901414,33.69538657,224.31,224.1,33.69538657]
[1733237901415,2.2295,224.24,224.1,33.69538657]
[1733237901722,33.69538657,224.31,224.11,2.90181273]
[1733237902023,2.2294,224.25,224.12,2.90181273]
[1733237902223,5.3631,224.32,224.14,33.69538657]
[1733237902424,2.2285,224.34,224.22,33.69538657]
[1733237902626,33.69538657,224.4,224.29,2.229]
[1733237902918,2.25722194,224.42,224.22,33.69538657]
[1733237903223,2.25722194,224.42,224.3,2.2289]
[1733237903420,33.69538657,224.4,224.22,33.69538657]
[1733237903624,33.69538657,224.32,223.99,6.34]
[1733237903921,6.34,224.31,224.11,33.69538657]
[1733237904122,13.85078252,224.31,224.12,1.11577285]
[1733237904322,16.52208252,224.31,224.14,2.2304]
[1733237904517,33.69538657,224.28,224.07,33.69538657]
[1733237904718,33.69538657,224.28,224.08,1.1160905]
[1733237904920,33.69538657,224.28,224.09,1.1160905]
[1733237905119,2.2298,224.21,224.07,33.69538657]
[1733237905317,33.69538657,224.28,224.12,2.2306]
[1733237905520,33.69538657,224.28,224.07,33.69538657]
[1733237905723,33.69538657,224.28,224.08,1.11613598]
[1733237906023,6.34,224.3,224.11,33.69538657]
[1733237906525,6.34,224.3,224.07,33.69538657]
[1733237906526,33.69538657,224.28,224.07,33.69538657]
[1733237906818,2.2305,224.14,224.03,33.69538657]
[1733237907023,33.69538657,224.24,224.03,33.69538657]
[1733237907214,33.69538657,224.29,224.07,33.69538657]
[1733237907924,2.2303,224.16,224.09,2.231]
[1733237908116,33.69538657,224.25,224.03,33.69538657]
[1733237908317,33.69538657,224.25,223.98,6.34]
[1733237908318,33.69538657,224.21,223.99,33.69538657]
[1733237908618,33.69538657,224.21,224.05,2.2314]
[1733237908821,33.69538657,224.21,223.99,33.69538657]
[1733237909025,33.69538657,224.25,224.09,2.231]
[1733237909219,33.69538657,224.25,224.07,33.69538657]
[1733237909415,33.69538657,224.25,224.03,33.69538657]
[1733237909816,33.69538657,224.29,224.07,33.69538657]
[1733237910024,2.2298,224.21,224.14,2.2304]
[1733237910221,33.69538657,224.29,224.11,33.69538657]
[1733237910622,10.18208252,224.31,224.11,33.69538657]
[1733237911126,33.69538657,224.29,224.11,33.69538657]
[1733237911828,2.2297,224.22,224.14,2.2304]
[1733237912027,33.69538657,224.29,224.11,33.69538657]
[1733237912328,33.69538657,224.25,223.97,1.11616992]
[1733237912522,10.18208252,224.31,224.07,33.69538657]
[1733237912523,33.69538657,224.29,224.07,33.69538657]
[1733237912924,2.2303,224.17,224.1,2.2309]
[1733237913428,33.69538657,224.29,224.07,33.69538657]
[1733237913929,33.69538657,224.29,224.03,33.69538657]
[1733237914120,33.69538657,224.23,224.03,33.69538657]
[1733237914321,6.34,224.22,223.99,33.69538657]
[1733237914527,6.34,224.22,224.03,33.69538657]
[1733237915022,2.2309,224.11,224.03,2.2315]
[1733237915224,33.69538657,224.19,223.99,33.69538657]
[1733237915422,2.18483454,224.18,223.99,33.69538657]
[1733237915625,2.18483454,224.18,224.03,2.2315]
[1733237915823,33.69538657,224.15,223.95,33.69538657]
[1733237916119,33.69538657,224.15,223.98,2.232]
[1733237916425,33.69538657,224.11,223.91,33.69538657]
[1733237916625,6.34,224.1,223.91,33.69538657]
[1733237917221,2.2313,224.06,223.91,33.69538657]
[1733237917521,2.6709,224.14,223.91,33.69538657]
[1733237917921,2.2313,224.06,223.99,2.232]
[1733237918126,2.6709,224.14,223.99,2.232]
[1733237918824,2.6709,224.14,223.98,2.2321]
[1733237919024,2.6709,224.14,223.95,33.69538657]
[1733237919428,2.231,224.1,223.95,33.69538657]
[1733237919630,2.5667,224.17,223.99,33.69538657]
[1733237919825,33.69538657,224.15,223.95,40.03538657]
[1733237921330,2.231,224.09,223.95,40.03538657]
[1733237921523,2.18234636,224.18,223.95,40.03538657]
[1733237921725,33.69538657,224.25,224.07,33.69538657]
[1733237921928,33.69538657,224.25,224.08,33.69538657]
[1733237922127,33.69538657,224.25,224.11,2.2307]
[1733237922426,33.69538657,224.25,224.08,33.69538657]
[1733237922427,2.23,224.19,224.08,33.69538657]
[1733237922827,33.69538657,224.25,224.08,33.69538657]
[1733237923027,33.69538657,224.25,224.04,33.69538657]
[1733237923430,2.23,224.2,224.1,2.2308]
[1733237923627,33.69538657,224.25,224.04,33.69538657]
[1733237923830,33.69538657,224.25,224.09,2.231]
[1733237924030,33.69538657,224.25,224.04,33.69538657]
[1733237924625,5.5264,224.28,224.04,33.69538657]
[1733237924933,2.711,224.3,224.12,33.69538657]
[1733237925233,33.69538657,224.4,224.16,33.69538657]
[1733237925234,5.2847,224.37,224.16,33.69538657]
[1733237925426,5.2847,224.37,224.2,33.69538657]
[1733237925629,5.2847,224.37,224.16,33.69538657]
[1733237925835,33.69538657,224.36,224.16,40.03538657]
[1733237926431,33.69538657,224.36,224.16,6.34]
[1733237926632,33.69538657,224.36,224.16,40.03538657]
[1733237926938,33.69538657,224.32,224.16,6.34]
[1733237927437,33.69538657,224.32,224.12,33.69538657]
[1733237927931,2.2835349,224.31,224.12,33.69538657]
[1733237928240,2.6933,224.37,224.12,33.69538657]
[1733237928432,33.69538657,224.34,224.12,33.69538657]
[1733237928633,33.69538657,224.3,224.07,40.01538657]
[1733237928938,2.2298,224.21,224.14,2.2304]
[1733237929135,2.2298,224.21,224.07,33.69538657]
[1733237929136,33.69538657,224.26,224.07,33.69538657]
[1733237929636,2.2299,224.2,224.13,2.2305]
[1733237929840,33.69538657,224.26,224.07,33.69538657]
[1733237930030,2.2299,224.2,224.07,33.69538657]
[1733237930235,33.69538657,224.26,224.07,33.69538657]
[1733237930433,2.2301,224.18,224.1,2.2308]
[1733237930734,33.69538657,224.22,224.03,33.95612556]
[1733237931136,2.2299,224.2,224.12,2.2307]
[1733237931342,33.69538657,224.26,224.06,33.69538657]
[1733237932142,33.69538657,224.22,224.03,33.95612556]
[1733237932639,2.2301,224.19,224.03,33.95612556]
[1733237932837,33.69538657,224.22,224.03,33.95612556]
[1733237933732,2.2301,224.18,224.03,33.95612556]
[1733237934539,2.2302,224.17,224.03,33.95612556]
[1733237934842,33.69538657,224.22,224.11,2.2308]
[1733237935041,2.2301,224.19,224.03,33.95612556]
[1733237935243,33.69538657,224.22,224.03,33.95612556]
[1733237935443,33.69538657,224.22,224.11,2.2307]
[1733237935739,33.69538657,224.22,224.03,33.95612556]
[1733237935939,2.7395,224.21,224.03,33.95612556]
[1733237936746,2.2306,224.13,224.03,33.95612556]
[1733237937145,2.7395,224.21,224.07,2.2312]
[1733237937947,2.7395,224.21,224.06,2.2313]
[1733237938246,2.2303,224.16,224.03,33.95612556]
[1733237938451,2.18334077,224.18,224.03,33.95612556]
[1733237938651,2.7395,224.21,224.03,33.95612556]
[1733237938950,2.7395,224.21,223.98,33.69538657]
[1733237938951,33.69538657,224.18,223.98,33.69538657]
[1733237939143,33.69538657,224.14,224.0,2.2319]
[1733237939447,2.6766,224.13,223.9,33.69538657]
[1733237939654,5.4334,224.13,224.0,2.2319]
[1733237939847,2.2309,224.1,223.94,33.69538657]
[1733237940246,2.2309,224.1,223.98,33.69538657]
[1733237940443,5.4334,224.13,223.98,33.69538657]
[1733237940647,5.4334,224.13,223.99,2.2319]
[1733237940953,5.4334,224.13,223.98,33.69538657]
[1733237941252,2.2312,224.07,223.98,33.69538657]
[1733237941454,5.4334,224.13,223.94,33.69538657]
[1733237941749,33.69538657,224.18,223.98,33.69538657]
[1733237941948,9.0595,224.21,224.02,33.69538657]
[1733237942152,2.2305,224.15,223.98,33.69538657]
[1733237942349,9.0595,224.21,224.05,2.2313]
[1733237942549,9.0595,224.21,223.98,33.69538657]
[1733237942951,9.0595,224.21,224.06,2.2312]
[1733237943354,9.0595,224.21,223.98,33.69538657]
[1733237943355,2.2309,224.1,224.03,2.2315]
[1733237943555,2.2309,224.1,223.98,33.69538657]
[1733237943756,2.22018758,224.17,223.98,33.69538657]
[1733237943945,2.2311,224.08,224.02,2.2317]
[1733237944151,2.2311,224.08,223.98,33.69538657]
[1733237944454,33.69538657,224.18,223.98,33.69538657]
[1733237944654,2.7395,224.21,223.98,33.69538657]
[1733237944955,2.7395,224.21,224.08,2.231]
[1733237944956,2.2305,224.14,224.08,2.231]
[1733237945254,2.7395,224.21,223.98,33.69538657]
[1733237945454,2.2306,224.13,224.07,2.2312]
[1733237945758,35.95197433,224.18,223.98,33.69538657]
[1733237945957,35.95197433,224.18,224.05,2.2313]
[1733237946154,35.95197433,224.18,223.98,33.69538657]
[1733237946659,2.2307,224.12,223.98,33.69538657]
[1733237946958,35.95197433,224.18,223.94,33.69538657]
[1733237947151,2.2309,224.1,223.94,33.69538657]
[1733237947351,35.95197433,224.18,223.94,33.69538657]
[1733237947557,22.46224785,224.18,223.97,20.20566009]
[1733237947757,2.2309,224.1,224.04,2.2314]
[1733237947956,6.32,224.09,223.89,20.20566009]
[1733237948259,26.52566009,224.08,223.98,2.232]
[1733237948860,26.52566009,224.08,223.89,20.20566009]
[1733237949260,6.32,224.08,223.89,20.20566009]
[1733237949561,2.8127,224.07,223.94,2.2324]
[1733237949860,2.8127,224.07,223.89,20.20566009]
[1733237950360,20.20566009,224.05,223.85,20.20566009]
[1733237950662,2.8127,224.07,223.89,20.20566009]
[1733237951362,2.2317,224.02,223.89,20.20566009]
[1733237951964,2.2317,224.02,223.97,2.2321]
[1733237952462,26.92244785,224.18,223.93,20.20566009]
[1733237952463,20.20566009,224.13,223.93,20.20566009]
[1733237952760,2.2316,224.03,223.89,20.20566009]
[1733237953156,20.20566009,224.09,223.89,20.20566009]
[1733237953363,20.20566009,224.13,223.93,20.20566009]
[1733237953561,20.20566009,224.13,224.03,2.2315]
[1733237953864,20.20566009,224.13,223.93,20.20566009]
[1733237954759,20.20566009,224.13,223.92,6.32]
[1733237954957,2.2314,224.06,223.92,6.32]
[1733237955159,20.20566009,224.13,223.92,6.32]
[1733237955356,20.20566009,224.09,223.92,6.32]
[1733237955559,20.20566009,224.13,223.92,6.32]
[1733237955761,20.20566009,224.13,224.03,2.2315]
[1733237955959,20.20566009,224.13,223.93,20.20566009]
[1733237956357,20.20566009,224.13,224.06,2.2313]
[1733237956861,20.20566009,224.13,223.93,20.20566009]
[1733237957355,20.20566009,224.13,223.86,2.23694173]
[1733237957356,20.20566009,224.09,223.89,20.20566009]
[1733237957554,2.22187704,224.17,223.93,20.20566009]
[1733237957755,20.20566009,224.2,223.97,20.20566009]
[1733237957960,2.2307,224.12,223.97,20.20566009]
[1733237958163,22.48493785,224.2,223.97,20.20566009]
[1733237958556,22.48493785,224.2,224.05,2.2313]
[1733237959665,20.20566009,224.16,223.89,2.22408499]
[1733237959861,20.20566009,224.12,223.9,20.20566009]
[1733237960058,5.3315,224.11,223.9,20.20566009]
[1733237960263,4.4494,224.73,224.07,4.4623]
[1733237960463,1596.9344808,225.07,224.1,20.20566009]
[1733237960464,20.20566009,224.35,224.1,20.20566009]
[1733237960765,2.6545,224.34,224.1,20.20566009]
[1733237960956,2.2289,224.3,224.2,2.2298]
[1733237961161,20.20566009,224.31,224.11,2.19416557]
[1733237961360,2.19639836,224.33,224.11,2.19416557]
[1733237961568,2.19639836,224.33,224.15,20.20566009]
[1733237961761,20.20566009,224.32,224.08,20.20566009]
[1733237961955,20.20566009,224.27,223.98,1.11641182]
[1733237962157,20.20566009,224.23,224.02,20.20566009]
[1733237962465,6.3,224.26,224.06,20.20566009]
[1733237963163,6.3,224.26,224.09,2.2309]
[1733237963164,2.23,224.19,224.09,2.2309]
[1733237963556,6.3,224.26,224.06,20.20566009]
[1733237963758,2.2301,224.18,224.06,20.20566009]
[1733237963961,6.3,224.26,223.92,1.11628387]
[1733237964173,2.7353,224.17,224.0,20.20566009]
[1733237964562,2.5754,224.16,224.0,20.20566009]
[1733237964759,6.3,224.15,224.0,20.20566009]
[1733237964960,2.2306,224.12,224.01,2.2316]
[1733237965262,8.57403826,224.15,223.96,20.20566009]
[1733237965565,2.231,224.08,223.98,2.2319]
[1733237966065,2.2307,224.11,224.02,2.2315]
[1733237966363,8.57403826,224.15,224.0,20.20566009]
[1733237966661,13.39,224.69,224.14,20.20566009]
[1733237966862,5.3719,224.49,224.34,20.20566009]
[1733237967065,2.6546,224.48,224.34,20.20566009]
[1733237967263,2.6546,224.48,224.38,2.2281]
[1733237967466,2.6546,224.48,224.13,7.58]
[1733237967661,2.2273,224.46,224.37,2.2281]
[1733237967865,2.6546,224.48,224.18,20.20566009]
[1733237967866,2.6546,224.48,224.32,20.20566009]
[1733237968066,5.3719,224.49,224.32,20.20566009]
[1733237968466,2.2269,224.5,224.32,20.20566009]
[1733237969068,20.20566009,224.53,224.32,20.20566009]
[1733237969272,20.20566009,224.53,224.29,20.20566009]
[1733237969273,2.2272,224.47,224.29,20.20566009]
[1733237969564,20.20566009,224.53,224.29,20.20566009]
[1733237970266,20.20566009,224.53,224.38,2.228]
[1733237970267,2.2271,224.49,224.38,2.228]
[1733237970574,2.2271,224.49,224.29,20.20566009]
[1733237970873,20.20566009,224.53,224.4,2.2279]
[1733237971072,2.21659958,224.55,224.4,2.2279]
[1733237971369,7.58,224.56,224.4,2.2279]
[1733237971567,2.2271,224.49,224.38,2.228]
[1733237971764,9.86437731,224.56,224.35,20.20566009]
[1733237972170,2.2267,224.52,224.42,2.2276]
[1733237972472,9.86437731,224.56,224.42,2.2276]
[1733237973173,2.2269,224.5,224.42,2.2276]
[1733237973770,9.86437731,224.56,224.42,2.2276]
[1733237974473,9.86437731,224.56,224.35,20.20566009]
[1733237975378,2.2266,224.53,224.39,20.20566009]
[1733237975776,7.75593576,224.57,224.39,20.20566009]
[1733237976275,5.5324,224.57,224.47,20.20566009]
[1733237976474,7.3,224.82,224.55,20.20566009]
[1733237976673,20.20566009,224.69,224.51,20.20566009]
[1733237976875,2.7317,224.68,224.51,20.20566009]
[1733237977276,5.2795,224.74,224.55,20.20566009]
[1733237977476,7.54338667,224.74,224.55,20.20566009]
[1733237978073,2.2249,224.71,224.6,2.2259]
[1733237978381,2.7317,224.81,224.59,20.20566009]
[1733237978577,2.2244,224.75,224.64,2.2255]
[1733237978874,20.20566009,224.75,224.55,22.388622]
[1733237979478,20.20566009,224.7,224.51,20.20566009]
[1733237979781,20.20566009,224.66,224.47,20.20566009]
[1733237979970,5.379,224.65,224.43,20.20566009]
[1733237980171,20.20566009,224.62,224.48,2.227]
[1733237980374,20.20566009,224.58,224.34,20.20566009]
[1733237980579,2.22717146,224.62,224.34,20.20566009]
[1733237980580,20.20566009,224.54,224.34,20.20566009]
[1733237980785,20.20566009,224.54,224.38,2.228]
[1733237980978,2.7656,224.53,224.38,2.228]
[1733237981173,20.20566009,224.5,224.25,2.27549625]
[1733237981379,20.20566009,224.5,224.24,46.36]
[1733237981380,20.20566009,224.5,224.24,7.28]
[1733237981588,32.75123276,224.46,224.25,32.75123276]
[1733237982476,2.228,224.39,224.29,2.2289]
[1733237982974,2.228,224.39,224.18,32.75123276]
[1733237982975,32.75123276,224.38,224.23,2.2295]
[1733237983180,37.81288258,224.38,224.17,32.75123276]
[1733237983580,2.7956,224.38,224.25,32.75123276]
[1733237984779,2.7956,224.38,224.22,32.75123276]
[1733237985786,2.7956,224.38,224.3,2.2288]
[1733237986084,2.7956,224.38,224.22,32.75123276]
[1733237986283,2.7956,224.38,224.26,32.75123276]
[1733237986979,32.75123276,224.47,224.26,32.75123276]
[1733237987280,2.6972,224.49,224.3,32.75123276]
[1733237987578,32.75123276,224.48,224.26,32.75123276]
[1733237987886,2.2279,224.4,224.26,32.75123276]
[1733237988480,2.2273,224.46,224.34,32.75123276]
[1733237988682,2.7244,224.47,224.3,32.75123276]
[1733237988886,2.2276,224.43,224.35,2.2283]
[1733237989086,2.2276,224.43,224.23,7.02]
[1733237989087,2.7244,224.47,224.23,7.02]
[1733237989286,2.7244,224.47,224.3,32.75123276]
[1733237989684,2.7244,224.47,224.25,32.75123276]
[1733237990381,2.7244,224.47,224.29,32.75123276]
[1733237990786,2.2276,224.43,224.29,32.75123276]
[1733237990982,2.7244,224.47,224.29,32.75123276]
[1733237991682,2.26937782,224.49,224.33,32.75123276]
[1733237991887,2.2267,224.53,224.37,32.75123276]
[1733237992088,2.2267,224.53,224.41,32.75123276]
[1733237992287,2.23250466,224.59,224.41,32.75123276]
[1733237992483,32.75123276,224.6,224.41,32.75123276]
[1733237992688,32.75123276,224.6,224.37,32.75123276]
[1733237993188,32.75123276,224.52,224.36,7.02]
[1733237993590,32.75123276,224.56,224.36,7.02]
[1733237993989,2.2273,224.47,224.39,2.228]
[1733237994186,32.75123276,224.56,224.36,7.02]
[1733237994391,34.96121839,224.6,224.37,32.75123276]
[1733237994796,2.2271,224.5,224.37,32.75123276]
[1733237995092,34.96121839,224.6,224.37,32.75123276]
[1733237995288,2.2271,224.49,224.41,2.2279]
[1733237995989,32.75123276,224.55,224.37,32.75123276]
[1733237996491,32.75123276,224.55,224.36,7.02]
[1733237996793,32.75123276,224.55,224.33,32.75123276]
[1733237996990,2.2274,224.46,224.33,32.75123276]
[1733237997191,2.2681637,224.48,224.33,32.75123276]
[1733237997394,2.6871,224.47,224.29,32.75123276]
[1733237997584,2.6871,224.47,224.34,2.2286]
[1733237997585,2.2276,224.45,224.34,2.2286]
[1733237997789,2.2276,224.45,224.28,6.74]
[1733237997790,5.449,224.47,224.33,32.75123276]
[1733237998189,5.449,224.47,224.38,2.2282]
[1733237998390,7.72855934,224.47,224.29,32.75123276]
[1733237998593,7.72855934,224.47,224.33,32.75123276]
[1733237998796,5.449,224.47,224.41,2.2279]
[1733237999093,5.449,224.47,224.33,32.75123276]
[1733237999291,5.449,224.47,224.37,32.75123276]
[1733237999494,6.74,224.57,224.37,32.75123276]
[1733237999696,2.7954,224.56,224.37,32.75123276]
[1733238000305,2.7954,224.56,224.41,32.75123276]
[1733238000497,2.7954,224.56,224.37,32.75123276]
[1733238000998,2.7954,224.56,224.29,1.78338491]
[1733238001204,2.7954,224.56,224.38,32.75123276]
[1733238001606,32.75123276,224.52,224.29,32.75123276]
[1733238001797,2.7954,224.56,224.37,32.75123276]
[1733238002004,2.7954,224.56,224.41,20.12649685]
[1733238002202,2.7954,224.56,224.44,2.2275]
[1733238002402,2.7954,224.56,224.35,6.74]
[1733238002403,2.7954,224.56,224.37,20.12649685]
[1733238002907,2.227,224.5,224.37,20.12649685]
[1733238003201,2.7954,224.56,224.45,20.12649685]
[1733238003404,2.2267,224.53,224.47,2.2273]
[1733238003805,22.92189685,224.56,224.31,1.78322242]
[1733238004013,20.12649685,224.52,224.3,20.12649685]
[1733238004310,2.7954,224.56,224.38,20.12649685]
[1733238004611,2.7489,224.59,224.46,20.12649685]
[1733238004906,2.6599,224.61,224.46,20.12649685]
[1733238005106,2.26808491,224.65,224.46,20.12649685]
[1733238005303,2.26808491,224.65,224.4,20.12649685]
[1733238005304,2.7338,224.69,224.54,20.12649685]
[1733238006001,5.2317,224.78,224.58,20.12649685]
[1733238006199,2.7338,224.77,224.58,20.12649685]
[1733238006605,4.9582,224.77,224.69,2.2251]
[1733238006799,4.9582,224.77,224.62,20.12649685]
[1733238006800,2.7338,224.77,224.62,20.12649685]
[1733238007405,20.12649685,224.9,224.66,20.12649685]
[1733238008302,2.2237,224.84,224.66,20.12649685]
[1733238008503,20.12649685,224.9,224.7,20.12649685]
[1733238008710,20.12649685,224.9,224.66,20.12649685]
[1733238008907,2.2238,224.83,224.72,2.2248]
[1733238009107,2.6353,224.89,224.58,0.78806196]
[1733238009304,20.12649685,224.74,224.59,3.68180027]
[1733238009505,16.61402586,224.74,224.59,1.11297133]
[1733238009703,20.12649685,224.82,224.6,1.11297133]
[1733238009704,20.12649685,224.78,224.6,1.11297133]
[1733238009907,20.12649685,224.74,224.56,6.74]
[1733238010111,2.2254,224.66,224.57,1.1132901]
[1733238010307,20.12649685,224.7,224.46,20.12649685]
[1733238010511,5.3861,224.73,224.51,2.2269]
[1733238010512,22.35239685,224.62,224.51,2.2269]
[1733238010809,22.35239685,224.62,224.4,20.12649685]
[1733238010810,20.12649685,224.66,224.45,20.12649685]
[1733238011004,20.12649685,224.66,224.46,1.11398499]
[1733238011209,20.12649685,224.66,224.4,20.12649685]
[1733238011409,2.226,224.61,224.41,2.89652816]
[1733238011612,20.12649685,224.66,224.45,20.12649685]
[1733238011801,2.2252,224.69,224.59,2.2261]
[1733238012005,5.3861,224.73,224.54,6.74]
[1733238012504,20.12649685,224.7,224.49,26.86649685]
[1733238012704,20.12649685,224.7,224.5,1.11385954]
[1733238012901,20.12649685,224.7,224.6,2.2259]
[1733238012902,2.2251,224.7,224.6,2.2259]
[1733238013103,2.2251,224.7,224.53,20.12649685]
[1733238013104,5.3861,224.73,224.53,20.12649685]
[1733238013507,20.12649685,224.7,224.55,2.2265]
[1733238013714,20.12649685,224.7,224.49,20.12649685]
[1733238013903,25.51259685,224.73,224.5,1.11374529]
[1733238013904,20.12649685,224.66,224.5,1.11374529]
[1733238014107,2.226,224.61,224.51,2.2269]
[1733238014307,2.226,224.61,224.46,1.78219013]
[1733238014504,20.12649685,224.66,224.45,26.86649685]
[1733238014808,20.12649685,224.66,224.45,20.12649685]
[1733238015111,20.12649685,224.66,224.42,6.74]
[1733238015310,20.12649685,224.66,224.44,20.12649685]
[1733238015509,20.12649685,224.62,224.4,20.12649685]
[1733238015709,2.2266,224.54,224.41,1.11414809]
[1733238015910,2.2266,224.54,224.4,26.86649685]
[1733238016104,2.21489502,224.6,224.41,1.11416143]
[1733238016311,2.2268,224.53,224.45,2.2275]
[1733238016507,20.12649685,224.53,224.36,1.78268287]
[1733238016811,20.12649685,224.53,224.35,2.2284]
[1733238016812,2.2276,224.44,224.35,2.2284]
[1733238017014,2.2276,224.44,224.26,8.68041276]
[1733238017015,26.60649685,224.53,224.33,20.12649685]
[1733238017212,26.60649685,224.53,224.29,20.12649685]
[1733238017409,20.12649685,224.49,224.29,20.12649685]
[1733238017609,2.6783,224.48,224.29,20.12649685]
[1733238018213,2.6783,224.48,224.26,6.48]
[1733238018518,2.6783,224.48,224.25,20.12649685]
[1733238018519,2.2282,224.38,224.3,2.2289]
[1733238018718,20.12649685,224.41,224.21,21.91023642]
[1733238018918,20.12649685,224.37,224.18,1.78373957]
[1733238019118,2.2293,224.27,224.19,1.11509992]
[1733238019316,20.12649685,224.33,224.14,1.78420195]
[1733238019618,2.7103,224.32,224.15,1.11518613]
[1733238019809,2.7103,224.32,224.13,20.12649685]
[1733238020411,2.7103,224.32,223.99,1.78420195]
[1733238020616,20.12649685,224.28,224.05,20.12649685]
[1733238020813,6.48,224.27,224.05,20.12649685]
[1733238021215,20.12649685,224.24,224.05,20.12649685]
[1733238021512,2.659,224.23,224.05,20.12649685]
[1733238021716,2.659,224.23,224.05,32.80989688]
[1733238022213,35.57009688,224.22,224.01,32.80989688]
[1733238022410,2.7602,224.22,224.05,32.80989688]
[1733238024216,2.7602,224.22,224.02,32.80989688]
[1733238024411,14.08,224.21,224.02,32.80989688]
[1733238024611,32.80989688,224.2,223.98,32.80989688]
[1733238024810,52.87989688,224.2,224.02,32.80989688]
[1733238025817,3.56,224.19,224.02,32.80989688]
[1733238026319,2.7668,224.18,224.02,32.80989688]
[1733238026715,2.7668,224.18,224.06,32.80989688]
[1733238026923,3.56,224.19,224.06,32.80989688]
[1733238027119,3.56,224.19,224.02,32.80989688]
[1733238027426,3.56,224.19,224.06,2.2314]
[1733238027723,3.56,224.19,224.02,32.80989688]
[1733238028025,3.56,224.19,223.96,32.80989688]
[1733238028321,3.56,224.19,224.05,32.80989688]
[1733238028724,3.56,224.19,224.12,2.2308]
[1733238029019,3.56,224.19,224.09,32.80989688]
[1733238029425,3.2,224.18,224.09,32.80989688]
[1733238030118,3.2,224.18,224.13,32.80989688]
[1733238030321,3.2,224.18,224.17,32.80989688]